fUSD/lending_fUSD_20250602
["ID","MTS","AMOUNT","RATE_DAILY","PERIOD"]
[363747773,1748859838428,-153.62,0.00019315,2]
[363747774,1748859838453,-420.0,0.00019315,2]
[363747775,1748859838477,-420.0,0.00019315,2]
[363747776,1748859838501,-420.0,0.00019315,2]
[363747777,1748859838525,-420.0,0.00019315,2]
[363747778,1748859838549,-443.96,0.00019315,2]
[363747779,1748859838573,-420.0,0.00019315,2]
[363747780,1748859838596,-267.9,0.00019315,2]
[363747781,1748859838620,-466.58,0.00019315,2]
[363747782,1748859838645,-1779.65,0.00019315,2]
[363747783,1748859838671,-451.5,0.00019315,2]
[363747784,1748859838695,-420.0,0.00019315,2]
[363747785,1748859838720,-1738.47,0.00019315,2]
[363747786,1748859838744,-420.0,0.00019315,2]
[363747787,1748859838768,-420.0,0.00019315,2]
[363747788,1748859838792,-420.0,0.00019315,2]
[363747789,1748859838815,-420.0,0.00019315,2]
[363747790,1748859838838,-420.0,0.00019315,2]
[363747791,1748859838861,-420.0,0.00019315,2]
[363747792,1748859838888,-420.0,0.00019315,2]
[363747793,1748859838910,-1386.1,0.00019315,2]
[363747794,1748859838936,-420.0,0.00019315,2]
[363747795,1748859838960,-420.0,0.00019315,2]
[363747796,1748859838986,-420.0,0.00019315,2]
[363747797,1748859839009,-420.0,0.00019315,2]
[363747798,1748859839035,-465.04,0.00019315,2]
[363747799,1748859839060,-420.0,0.00019315,2]
[363747800,1748859839083,-420.0,0.00019315,2]
[363747801,1748859839107,-420.0,0.00019315,2]
[363747802,1748859839131,-420.0,0.00019315,2]
[363747803,1748859839154,-420.0,0.00019315,2]
[363747804,1748859839180,-420.0,0.00019315,2]
[363747805,1748859839205,-581.15,0.00019315,2]
[363747806,1748859839228,-420.0,0.00019315,2]
[363747807,1748859839252,-475.83,0.00019315,2]
[363747808,1748859839275,-19.7590263,0.00019315,2]
[363747809,1748859839309,-400.2409737,0.00019315,2]
[363747810,1748859839333,-431.18984596,0.00019315,2]
[363747811,1748859839358,-7682.1,0.00019315,2]
[363747812,1748859839382,-420.0,0.00019315,2]
[363747813,1748859839406,-420.0,0.00019315,2]
[363747814,1748859839432,-420.0,0.00019315,2]
[363747815,1748859839459,-420.0,0.00019315,2]
[363747816,1748859839482,-420.0,0.00019315,2]
[363747817,1748859839505,-420.0,0.00019315,2]
[363747818,1748859839529,-819.08,0.00019315,2]
[363747819,1748859839553,-515.14,0.00019315,2]
[363747820,1748859839576,-420.0,0.00019315,2]
[363747821,1748859839599,-420.0,0.00019315,2]
[363747822,1748859839623,-420.0,0.00019315,2]
[363747823,1748859839646,-420.0,0.00019315,2]
[363747824,1748859839669,-420.0,0.00019315,2]
[363747825,1748859839694,-420.0,0.00019315,2]
[363747826,1748859839718,-420.0,0.00019315,2]
[363747827,1748859839745,-420.0,0.00019315,2]
[363747828,1748859839772,-1107.0,0.00019315,2]
[363747829,1748859839795,-420.0,0.00019315,2]
[363747830,1748859839818,-420.0,0.00019315,2]
[363747831,1748859839841,-420.0,0.00019315,2]
[363747832,1748859839865,-420.0,0.00019315,2]
[363747833,1748859839890,-420.0,0.00019315,2]
[363747834,1748859839915,-420.0,0.00019315,2]
[363747835,1748859839941,-420.0,0.00019315,2]
[363747836,1748859839966,-420.0,0.00019315,2]
[363747837,1748859839991,-95.94967679,0.00019315,2]
[363747838,1748859840042,-324.05032321,0.00019315,2]
[363747839,1748859840067,-420.0,0.00019315,2]
[363747840,1748859840092,-420.0,0.00019315,2]
[363747841,1748859840117,-448.66,0.00019315,2]
[363747842,1748859840142,-420.0,0.00019315,2]
[363747843,1748859840166,-420.0,0.00019315,2]
[363747844,1748859840190,-420.0,0.00019315,2]
[363747845,1748859840215,-539.24,0.00019315,2]
[363747846,1748859840241,-582.64,0.00019315,2]
[363747847,1748859840266,-420.0,0.00019315,2]
[363747848,1748859840292,-420.0,0.00019315,2]
[363747849,1748859840497,-420.0,0.00019315,2]
[363747850,1748859840527,-942.91,0.00019315,2]
[363747851,1748859840552,-420.0,0.00019315,2]
[363747852,1748859840578,-420.0,0.00019315,2]
[363747853,1748859840604,-420.0,0.00019315,2]
[363747854,1748859840628,-420.0,0.00019315,2]
[363747855,1748859840653,-420.0,0.00019315,2]
[363747856,1748859840676,-477.04,0.00019315,2]
[363747857,1748859840701,-420.0,0.00019315,2]
[363747858,1748859840725,-483.19,0.00019315,2]
[363747859,1748859840749,-981.37,0.00019315,2]
[363747860,1748859840773,-420.0,0.00019315,2]
[363747861,1748859840798,-420.0,0.00019315,2]
[363747862,1748859840825,-784.05,0.00019315,2]
[363747863,1748859840849,-420.0,0.00019315,2]
[363747864,1748859840876,-420.0,0.00019315,2]
[363747865,1748859840900,-420.0,0.00019315,2]
[363747866,1748859840926,-420.0,0.00019315,2]
[363747867,1748859840955,-420.0,0.00019315,2]
[363747868,1748859840979,-420.0,0.00019315,2]
[363747869,1748859841003,-832.92,0.00019315,2]
[363747870,1748859841026,-490.88,0.00019315,2]
[363747871,1748859841052,-420.0,0.00019315,2]
[363747872,1748859841076,-420.0,0.00019315,2]
[363747873,1748859841100,-420.0,0.00019315,2]
[363747874,1748859841125,-502.76,0.00019315,2]
[363747875,1748859841149,-420.0,0.00019315,2]
[363747876,1748859841174,-420.0,0.00019315,2]
[363747877,1748859841200,-420.0,0.00019315,2]
[363747878,1748859841226,-692.56,0.00019315,2]
[363747879,1748859841250,-420.0,0.00019315,2]
[363747880,1748859841279,-28.43017324,0.00019315,2]
[363747881,1748859841340,-391.56982676,0.00019315,2]
[363747882,1748859841365,-420.0,0.00019315,2]
[363747883,1748859841390,-420.0,0.00019315,2]
[363747884,1748859841415,-420.0,0.00019315,2]
[363747885,1748859841440,-420.0,0.00019315,2]
[363747886,1748859841466,-420.0,0.00019315,2]
[363747887,1748859841491,-2957.87,0.00019315,2]
[363747888,1748859841515,-420.0,0.00019315,2]
[363747889,1748859841541,-528.49106215,0.00019315,2]
[363747890,1748859841566,-420.0,0.00019315,2]
[363747891,1748859841590,-420.0,0.00019315,2]
[363747892,1748859841614,-420.0,0.00019315,2]
[363747893,1748859841639,-420.0,0.00019315,2]
[363747894,1748859841662,-173.25519116,0.00019315,2]
[363747895,1748859841687,-420.0,0.00019315,2]
[363747896,1748859841710,-420.0,0.00019315,2]
[363747897,1748859841734,-420.0,0.00019315,2]
[363747898,1748859841758,-420.0,0.00019315,2]
[363747899,1748859841783,-692.74,0.00019315,2]
[363747900,1748859841806,-420.0,0.00019315,2]
[363747901,1748859841831,-423.8,0.00019315,2]
[363747902,1748859841855,-420.0,0.00019315,2]
[363747903,1748859841880,-420.0,0.00019315,2]
[363747904,1748859841908,-420.0,0.00019315,2]
[363747905,1748859841937,-420.0,0.00019315,2]
[363747906,1748859841966,-420.0,0.00019315,2]
[363747907,1748859841992,-420.0,0.00019315,2]
[363747908,1748859842015,-765.93099123,0.00019352,2]
[363747909,1748859842039,-400.89454854,0.00019352,2]
[363747910,1748859842063,-200.0,0.000194,7]
[363747911,1748859842087,-765.93099123,0.00019413,2]
[363747912,1748859842111,-400.89454854,0.00019443,2]
[363747913,1748859842135,-286.88,0.00019452,2]
[363747914,1748859842160,-420.0,0.00019452,2]
[363747915,1748859842186,-361.94,0.00019452,2]
[363747916,1748859842210,-420.0,0.00019452,2]
[363747917,1748859842233,-362.28,0.00019452,2]
[363747918,1748859842256,-420.0,0.00019452,2]
[363747919,1748859842280,-420.0,0.00019452,2]
[363747920,1748859842304,-420.0,0.00019452,2]
[363747921,1748859842327,-420.0,0.00019452,2]
[363747922,1748859842351,-238.22333684,0.00019452,2]
[363747923,1748859842388,-181.77666316,0.00019452,2]
[363747924,1748859842411,-420.0,0.00019452,2]
[363747925,1748859842433,-420.0,0.00019452,2]
[363747926,1748859842455,-420.0,0.00019452,2]
[363747927,1748859842477,-420.0,0.00019452,2]
[363747928,1748859842501,-157.82,0.00019452,2]
[363747929,1748859842522,-420.0,0.00019452,2]
[363747930,1748859842544,-420.0,0.00019452,2]
[363747931,1748859842567,-420.0,0.00019452,2]
[363747932,1748859842589,-420.0,0.00019452,2]
[363747933,1748859842611,-420.0,0.00019452,2]
[363747934,1748859842634,-330.44,0.00019452,2]
[363747935,1748859842656,-420.0,0.00019452,2]
[363747936,1748859842680,-188.72,0.00019452,2]
[363747937,1748859842703,-420.0,0.00019452,2]
[363747938,1748859842726,-420.0,0.00019452,2]
[363747939,1748859842749,-420.0,0.00019452,2]
[363747940,1748859842773,-420.0,0.00019452,2]
[363747941,1748859842796,-420.0,0.00019452,2]
[363747942,1748859842819,-420.0,0.00019452,2]
[363747943,1748859842841,-420.0,0.00019452,2]
[363747944,1748859842864,-420.0,0.00019452,2]
[363747945,1748859842894,-420.0,0.00019452,2]
[363747946,1748859842917,-389.8,0.00019452,2]
[363747947,1748859842942,-202.44,0.00019452,2]
[363747948,1748859842965,-420.0,0.00019452,2]
[363747949,1748859842990,-420.0,0.00019452,2]
[363747950,1748859843013,-224.14,0.00019452,2]
[363747951,1748859843037,-420.0,0.00019452,2]
[363747952,1748859843062,-332.62652488,0.00019452,2]
[363747953,1748859843090,-420.0,0.00019452,2]
[363747954,1748859843114,-420.0,0.00019452,2]
[363747955,1748859843139,-420.0,0.00019452,2]
[363747956,1748859843164,-555.94,0.00019452,2]
[363747957,1748859843191,-420.0,0.00019452,2]
[363747958,1748859843216,-420.0,0.00019452,2]
[363747959,1748859843241,-420.0,0.00019452,2]
[363747960,1748859843267,-531.0,0.00019452,2]
[363747961,1748859843291,-420.0,0.00019452,2]
[363747962,1748859843525,-420.0,0.00019452,2]
[363747963,1748859843550,-430.4,0.00019452,2]
[363747964,1748859843575,-420.0,0.00019452,2]
[363747965,1748859843598,-420.0,0.00019452,2]
[363747966,1748859843622,-420.0,0.00019452,2]
[363747967,1748859843645,-446.46,0.00019452,2]
[363747968,1748859843669,-420.0,0.00019452,2]
[363747969,1748859843693,-510.0,0.00019452,2]
[363747970,1748859843716,-179.24,0.00019452,2]
[363747971,1748859843740,-420.0,0.00019452,2]
[363747972,1748859843766,-541.06,0.00019452,2]
[363747973,1748859843791,-388.83730841,0.00019452,2]
[363747974,1748859843826,-140.16269159,0.00019452,2]
[363747975,1748859843850,-705.7,0.00019452,2]
[363747976,1748859843877,-420.0,0.00019452,2]
[363747977,1748859843902,-420.0,0.00019452,2]
[363747978,1748859843928,-420.0,0.00019452,2]
[363747979,1748859843953,-420.0,0.00019452,2]
[363747980,1748859843979,-229.44,0.00019452,2]
[363747981,1748859844003,-420.0,0.00019452,2]
[363747982,1748859844028,-420.0,0.00019452,2]
[363747983,1748859844053,-420.0,0.00019452,2]
[363747984,1748859844080,-466.58,0.00019452,2]
[363747985,1748859844108,-1779.65,0.00019452,2]
[363747986,1748859844134,-420.0,0.00019452,2]
[363747987,1748859844160,-420.0,0.00019452,2]
[363747988,1748859844189,-1738.47,0.00019452,2]
[363747989,1748859844215,-420.0,0.00019452,2]
[363747990,1748859844242,-420.0,0.00019452,2]
[363747991,1748859844267,-420.0,0.00019452,2]
[363747992,1748859844292,-420.0,0.00019452,2]
[363747993,1748859844316,-420.0,0.00019452,2]
[363747994,1748859844342,-420.0,0.00019452,2]
[363747995,1748859844366,-1386.1,0.00019452,2]
[363747996,1748859844390,-420.0,0.00019452,2]
[363747997,1748859844414,-420.0,0.00019452,2]
[363747998,1748859844437,-274.84,0.00019452,2]
[363747999,1748859844461,-291.3,0.00019452,2]
[363748000,1748859844486,-465.04,0.00019452,2]
[363748001,1748859844511,-420.0,0.00019452,2]
[363748002,1748859844534,-420.0,0.00019452,2]
[363748003,1748859844559,-420.0,0.00019452,2]
[363748004,1748859844582,-420.0,0.00019452,2]
[363748005,1748859844605,-420.0,0.00019452,2]
[363748006,1748859844629,-420.0,0.00019452,2]
[363748007,1748859844654,-581.15,0.00019452,2]
[363748008,1748859844677,-420.0,0.00019452,2]
[363748009,1748859844702,-475.83,0.00019452,2]
[363748010,1748859844726,-503.78266785,0.00019452,2]
[363748011,1748859844750,-1172.65513701,0.00019452,2]
[363748012,1748859845037,-6509.44486299,0.00019452,2]
[363748013,1748859845063,-392.11291047,0.00019452,2]
[363748014,1748859845195,-420.0,0.00019452,2]
[363748015,1748859845223,-396.66,0.00019452,2]
[363748016,1748859845250,-328.54,0.00019452,2]
[363748017,1748859845275,-420.0,0.00019452,2]
[363748018,1748859845301,-819.08,0.00019452,2]
[363748019,1748859845327,-420.0,0.00019452,2]
[363748020,1748859845352,-210.48,0.00019452,2]
[363748021,1748859845375,-420.0,0.00019452,2]
[363748022,1748859845399,-420.0,0.00019452,2]
[363748023,1748859845422,-420.0,0.00019452,2]
[363748024,1748859845447,-420.0,0.00019452,2]
[363748025,1748859845473,-420.0,0.00019452,2]
[363748026,1748859845501,-1107.0,0.00019452,2]
[363748027,1748859845525,-420.0,0.00019452,2]
[363748028,1748859845548,-253.8,0.00019452,2]
[363748029,1748859845573,-202.72,0.00019452,2]
[363748030,1748859845596,-420.0,0.00019452,2]
[363748031,1748859845621,-420.0,0.00019452,2]
[363748032,1748859845644,-366.38371323,0.00019452,2]
[363748033,1748859845668,-420.0,0.00019452,2]
[363748034,1748859845694,-420.0,0.00019452,2]
[363748035,1748859845720,-420.0,0.00019452,2]
[363748036,1748859845745,-249.72,0.00019452,2]
[363748037,1748859845769,-183.94686764,0.00019452,2]
[363748038,1748859845795,-448.66,0.00019452,2]
[363748039,1748859845819,-420.0,0.00019452,2]
[363748040,1748859845843,-263.08,0.00019452,2]
[363748041,1748859845869,-420.0,0.00019452,2]
[363748042,1748859845898,-582.64,0.00019452,2]
[363748043,1748859845923,-420.0,0.00019452,2]
[363748044,1748859845947,-420.0,0.00019452,2]
[363748045,1748859845973,-416.43214212,0.00019452,2]
[363748046,1748859846012,-3.56785788,0.00019452,2]
[363748047,1748859846038,-942.91,0.00019452,2]
[363748048,1748859846064,-420.0,0.00019452,2]
[363748049,1748859846090,-196.34,0.00019452,2]
[363748050,1748859846118,-420.0,0.00019452,2]
[363748051,1748859846143,-420.0,0.00019452,2]
[363748052,1748859846171,-420.0,0.00019452,2]
[363748053,1748859846200,-420.0,0.00019452,2]
[363748054,1748859846225,-981.37,0.00019452,2]
[363748055,1748859846251,-420.0,0.00019452,2]
[363748056,1748859846278,-420.0,0.00019452,2]
[363748057,1748859846306,-784.05,0.00019452,2]
[363748058,1748859846332,-420.0,0.00019452,2]
[363748059,1748859846358,-420.0,0.00019452,2]
[363748060,1748859846383,-420.0,0.00019452,2]
[363748061,1748859846411,-420.0,0.00019452,2]
[363748062,1748859846643,-420.0,0.00019452,2]
[363748063,1748859846669,-832.92,0.00019452,2]
[363748064,1748859846694,-420.0,0.00019452,2]
[363748065,1748859846718,-420.0,0.00019452,2]
[363748066,1748859846740,-420.0,0.00019452,2]
[363748067,1748859846763,-502.76,0.00019452,2]
[363748068,1748859846787,-420.0,0.00019452,2]
[363748069,1748859846810,-420.0,0.00019452,2]
[363748070,1748859846834,-420.0,0.00019452,2]
[363748071,1748859846858,-692.56,0.00019452,2]
[363748072,1748859846885,-420.0,0.00019452,2]
[363748073,1748859846917,-420.0,0.00019452,2]
[363748074,1748859846944,-420.0,0.00019452,2]
[363748075,1748859846970,-420.0,0.00019452,2]
[363748076,1748859846994,-420.0,0.00019452,2]
[363748077,1748859847019,-420.0,0.00019452,2]
[363748078,1748859847043,-497.01,0.00019452,2]
[363748079,1748859847069,-2957.87,0.00019452,2]
[363748080,1748859847093,-420.0,0.00019452,2]
[363748081,1748859847119,-420.0,0.00019452,2]
[363748082,1748859847142,-420.0,0.00019452,2]
[363748083,1748859847167,-420.0,0.00019452,2]
[363748084,1748859847192,-139.34263857,0.00019452,2]
[363748085,1748859847234,-280.65736143,0.00019452,2]
[363748086,1748859847259,-549.33,0.00019452,2]
[363748087,1748859847283,-420.0,0.00019452,2]
[363748088,1748859847308,-420.0,0.00019452,2]
[363748089,1748859847335,-420.0,0.00019452,2]
[363748090,1748859847360,-692.74,0.00019452,2]
[363748091,1748859847384,-420.0,0.00019452,2]
[363748092,1748859847410,-423.8,0.00019452,2]
[363748093,1748859847440,-420.0,0.00019452,2]
[363748094,1748859847464,-420.0,0.00019452,2]
[363748095,1748859847489,-420.0,0.00019452,2]
[363748096,1748859847513,-211.85,0.00019452,2]
[363748097,1748859847537,-420.0,0.00019452,2]
[363748098,1748859847563,-411.81,0.00019452,2]
[363748099,1748859847587,-765.93099123,0.00019474,2]
[363748100,1748859847611,-158.23303637,0.00019489,2]
[363748101,1748859847637,-500.0,0.000195,7]
[363748102,1748859847660,-150.0,0.000195,2]
[363748103,1748859847684,-150.0,0.000195,2]
[363748104,1748859847707,-150.0,0.000195,2]
[363748105,1748859847730,-765.93099123,0.00019535,2]
[363748106,1748859847758,-400.89454854,0.00019535,2]
[363748107,1748859847780,-500.0,0.00019562,2]
[363748108,1748859847805,-521.92,0.00019589,2]
[363748109,1748859847829,-420.0,0.00019589,2]
[363748110,1748859847854,-420.0,0.00019589,2]
[363748111,1748859847881,-420.0,0.00019589,2]
[363748112,1748859847905,-420.0,0.00019589,2]
[363748113,1748859847931,-420.0,0.00019589,2]
[363748114,1748859847958,-420.0,0.00019589,2]
[363748115,1748859847985,-198.76,0.00019589,2]
[363748116,1748859848009,-512.56,0.00019589,2]
[363748117,1748859848033,-166.05,0.00019589,2]
[363748118,1748859848059,-420.0,0.00019589,2]
[363748119,1748859848084,-420.0,0.00019589,2]
[363748120,1748859848108,-420.0,0.00019589,2]
[363748121,1748859848133,-420.0,0.00019589,2]
[363748122,1748859848157,-420.0,0.00019589,2]
[363748123,1748859848182,-232.55,0.00019589,2]
[363748124,1748859848209,-420.0,0.00019589,2]
[363748125,1748859848234,-420.0,0.00019589,2]
[363748126,1748859848260,-184.64,0.00019589,2]
[363748127,1748859848286,-372.64,0.00019589,2]
[363748128,1748859848313,-420.0,0.00019589,2]
[363748129,1748859848338,-420.0,0.00019589,2]
[363748130,1748859848363,-420.0,0.00019589,2]
[363748131,1748859848388,-420.0,0.00019589,2]
[363748132,1748859848414,-420.0,0.00019589,2]
[363748133,1748859848440,-464.8,0.00019589,2]
[363748134,1748859848465,-420.0,0.00019589,2]
[363748135,1748859848492,-185.60356765,0.00019589,2]
[363748136,1748859848532,-234.39643235,0.00019589,2]
[363748137,1748859848557,-420.0,0.00019589,2]
[363748138,1748859848585,-412.0,0.00019589,2]
[363748139,1748859848612,-420.0,0.00019589,2]
[363748140,1748859848637,-705.7,0.00019589,2]
[363748141,1748859848679,-420.0,0.00019589,2]
[363748142,1748859848725,-176.54554135,0.00019589,2]
[363748143,1748859848757,-420.0,0.00019589,2]
[363748144,1748859848784,-420.0,0.00019589,2]
[363748145,1748859848810,-466.58,0.00019589,2]
[363748146,1748859848838,-1779.65,0.00019589,2]
[363748147,1748859848864,-420.0,0.00019589,2]
[363748148,1748859848893,-420.0,0.00019589,2]
[363748149,1748859848940,-1738.47,0.00019589,2]
[363748150,1748859848985,-420.0,0.00019589,2]
[363748151,1748859849012,-420.0,0.00019589,2]
[363748152,1748859849040,-420.0,0.00019589,2]
[363748153,1748859849065,-1386.1,0.00019589,2]
[363748154,1748859849091,-431.2,0.00019589,2]
[363748155,1748859849120,-465.04,0.00019589,2]
[363748156,1748859849146,-420.0,0.00019589,2]
[363748157,1748859849173,-420.0,0.00019589,2]
[363748158,1748859849201,-420.0,0.00019589,2]
[363748159,1748859849232,-581.15,0.00019589,2]
[363748160,1748859849262,-475.83,0.00019589,2]
[363748161,1748859849291,-5978.03852275,0.00019589,2]
[363748162,1748859849348,-1704.06147725,0.00019589,2]
[363748163,1748859849374,-819.08,0.00019589,2]
[363748164,1748859849399,-420.0,0.00019589,2]
[363748165,1748859849425,-394.32,0.00019589,2]
[363748166,1748859849453,-420.0,0.00019589,2]
[363748167,1748859849479,-420.0,0.00019589,2]
[363748168,1748859849508,-420.0,0.00019589,2]
[363748169,1748859849536,-1107.0,0.00019589,2]
[363748170,1748859849562,-420.0,0.00019589,2]
[363748171,1748859849586,-420.0,0.00019589,2]
[363748172,1748859849611,-420.0,0.00019589,2]
[363748173,1748859849637,-420.0,0.00019589,2]
[363748174,1748859849662,-448.66,0.00019589,2]
[363748175,1748859849690,-582.64,0.00019589,2]
[363748176,1748859849890,-420.0,0.00019589,2]
[363748177,1748859849917,-420.0,0.00019589,2]
[363748178,1748859849948,-942.91,0.00019589,2]
[363748179,1748859849973,-420.0,0.00019589,2]
[363748180,1748859849998,-420.0,0.00019589,2]
[363748181,1748859850022,-420.0,0.00019589,2]
[363748182,1748859850048,-420.0,0.00019589,2]
[363748183,1748859850074,-420.0,0.00019589,2]
[363748184,1748859850098,-981.37,0.00019589,2]
[363748185,1748859850122,-420.0,0.00019589,2]
[363748186,1748859850149,-784.05,0.00019589,2]
[363748187,1748859850173,-420.32,0.00019589,2]
[363748188,1748859850198,-420.0,0.00019589,2]
[363748189,1748859850224,-420.0,0.00019589,2]
[363748190,1748859850248,-832.92,0.00019589,2]
[363748191,1748859850273,-420.0,0.00019589,2]
[363748192,1748859850298,-502.76,0.00019589,2]
[363748193,1748859850323,-692.56,0.00019589,2]
[363748194,1748859850351,-420.0,0.00019589,2]
[363748195,1748859850378,-420.0,0.00019589,2]
[363748196,1748859850402,-420.0,0.00019589,2]
[363748197,1748859850428,-838.0490192,0.00019589,2]
[363748198,1748859850480,-2119.8209808,0.00019589,2]
[363748199,1748859850504,-420.0,0.00019589,2]
[363748200,1748859850530,-430.46,0.00019589,2]
[363748201,1748859850555,-420.0,0.00019589,2]
[363748202,1748859850581,-692.74,0.00019589,2]
[363748203,1748859850607,-423.8,0.00019589,2]
[363748204,1748859850633,-420.0,0.00019589,2]
[363748205,1748859850658,-420.0,0.00019589,2]
[363748206,1748859850683,-420.0,0.00019589,2]
[363748207,1748859850707,-3058.79236222,0.0001959,2]
[363748208,1748859850732,-765.93099123,0.00019596,2]
[363748209,1748859850756,-1310.284503,0.00019599,2]
[363748210,1748859850781,-800.0,0.000196,7]
[363748211,1748859850806,-151.93738563,0.00019626,2]
[363748212,1748859850831,-400.89454854,0.00019626,2]
[363748213,1748859850855,-765.93099123,0.00019656,2]
[363748214,1748859850881,-500.0,0.00019671,2]
[363748215,1748859850905,-150.0,0.000197,2]
[363748216,1748859850930,-1000.0,0.000197,7]
[363748217,1748859850957,-765.93099123,0.00019717,2]
[363748218,1748859850981,-151.93738563,0.00019717,2]
[363748219,1748859851005,-400.89454854,0.00019717,2]
[363748220,1748859851031,-626.7,0.00019725,2]
[363748221,1748859851056,-420.0,0.00019726,2]
[363748222,1748859851080,-420.0,0.00019726,2]
[363748223,1748859851104,-420.0,0.00019726,2]
[363748224,1748859851128,-199.93232894,0.00019726,2]
[363748225,1748859851152,-420.0,0.00019726,2]
[363748226,1748859851176,-428.32288385,0.00019726,2]
[363748227,1748859851201,-461.7,0.00019726,2]
[363748228,1748859851226,-426.58,0.00019726,2]
[363748229,1748859851249,-231.96,0.00019726,2]
[363748230,1748859851274,-246.15059561,0.00019726,2]
[363748231,1748859851303,-459.54940439,0.00019726,2]
[363748232,1748859851327,-264.93032265,0.00019726,2]
[363748233,1748859851352,-420.0,0.00019726,2]
[363748234,1748859851377,-420.0,0.00019726,2]
[363748235,1748859851402,-466.58,0.00019726,2]
[363748236,1748859851429,-1779.65,0.00019726,2]
[363748237,1748859851456,-420.0,0.00019726,2]
[363748238,1748859851481,-420.0,0.00019726,2]
[363748239,1748859851506,-1738.47,0.00019726,2]
[363748240,1748859851532,-420.0,0.00019726,2]
[363748241,1748859851559,-420.0,0.00019726,2]
[363748242,1748859851585,-420.0,0.00019726,2]
[363748243,1748859851610,-1386.1,0.00019726,2]
[363748244,1748859851635,-465.04,0.00019726,2]
[363748245,1748859851660,-420.0,0.00019726,2]
[363748246,1748859851685,-420.0,0.00019726,2]
[363748247,1748859851711,-581.15,0.00019726,2]
[363748248,1748859851736,-475.83,0.00019726,2]
[363748249,1748859851761,-7682.1,0.00019726,2]
[363748250,1748859851786,-819.08,0.00019726,2]
[363748251,1748859851810,-392.22076941,0.00019726,2]
[363748252,1748859851853,-19.01923059,0.00019726,2]
[363748253,1748859851878,-371.1,0.00019726,2]
[363748254,1748859851907,-420.0,0.00019726,2]
[363748255,1748859851935,-1107.0,0.00019726,2]
[363748256,1748859851960,-420.0,0.00019726,2]
[363748257,1748859851985,-420.0,0.00019726,2]
[363748258,1748859852010,-420.0,0.00019726,2]
[363748259,1748859852035,-448.66,0.00019726,2]
[363748260,1748859852061,-582.64,0.00019726,2]
[363748261,1748859852086,-420.0,0.00019726,2]
[363748262,1748859852113,-420.0,0.00019726,2]
[363748263,1748859852141,-942.91,0.00019726,2]
[363748264,1748859852167,-420.0,0.00019726,2]
[363748265,1748859852195,-420.0,0.00019726,2]
[363748266,1748859852220,-420.0,0.00019726,2]
[363748267,1748859852248,-420.0,0.00019726,2]
[363748268,1748859852276,-420.0,0.00019726,2]
[363748269,1748859852302,-981.37,0.00019726,2]
[363748270,1748859852329,-784.05,0.00019726,2]
[363748271,1748859852356,-420.0,0.00019726,2]
[363748272,1748859852382,-420.0,0.00019726,2]